[Event "Early-Titled-Tuesday-Blitz-May-14-2024"]
[Site "Chess.com"]
[Date "2024.05.14"]
[Round "5"]
[White "colegiodemadrid"]
[Black "ploxoi"]
[Result "0-1"]
[WhiteElo "2550"]
[BlackElo "2338"]
[TimeControl "180+1"]
[EndTime "8:59:08 PDT"]
[Termination "ploxoi won by resignation"]

1. Nf3 {[%clk 0:02:59.5]} 1... d5 {[%clk 0:02:56.6]} 2. e3 {[%clk 0:02:59]} 2...
Nf6 {[%clk 0:02:56.2]} 3. c4 {[%clk 0:02:59.5]} 3... c6 {[%clk 0:02:56]} 4. Nc3
{[%clk 0:03:00]} 4... Bf5 {[%clk 0:02:54.2]} 5. b3 {[%clk 0:02:59]} 5... e6
{[%clk 0:02:53.5]} 6. Bb2 {[%clk 0:02:58.9]} 6... h6 {[%clk 0:02:54]} 7. h3
{[%clk 0:02:59]} 7... Be7 {[%clk 0:02:54.4]} 8. Be2 {[%clk 0:02:59]} 8... a5
{[%clk 0:02:52.8]} 9. Rc1 {[%clk 0:02:53.5]} 9... Nbd7 {[%clk 0:02:50.5]} 10.
cxd5 {[%clk 0:02:49]} 10... exd5 {[%clk 0:02:48.7]} 11. O-O {[%clk 0:02:40.2]}
11... O-O {[%clk 0:02:47.3]} 12. d3 {[%clk 0:02:37.2]} 12... Re8 {[%clk
0:02:43.5]} 13. Qc2 {[%clk 0:02:37.2]} 13... Bb4 {[%clk 0:02:36.5]} 14. a3
{[%clk 0:02:33.4]} 14... Bf8 {[%clk 0:02:35.2]} 15. Rfe1 {[%clk 0:02:33]} 15...
Qb6 {[%clk 0:02:29.5]} 16. Bf1 {[%clk 0:02:21.6]} 16... Nc5 {[%clk 0:02:26]} 17.
Na4 {[%clk 0:02:21.9]} 17... Nxa4 {[%clk 0:02:11.4]} 18. bxa4 {[%clk 0:02:22.8]}
18... Rac8 {[%clk 0:02:05.1]} 19. Bxf6 {[%clk 0:02:21.5]} 19... gxf6 {[%clk
0:02:04.6]} 20. Rb1 {[%clk 0:02:22]} 20... Qc7 {[%clk 0:02:00]} 21. Qb2 {[%clk
0:02:21.9]} 21... Kg7 {[%clk 0:01:52.7]} 22. Qxb7 {[%clk 0:02:18]} 22... Qxb7
{[%clk 0:01:53.6]} 23. Rxb7 {[%clk 0:02:18.8]} 23... Bxa3 {[%clk 0:01:53.9]} 24.
Nd4 {[%clk 0:02:06.3]} 24... Bg6 {[%clk 0:01:52.5]} 25. f4 {[%clk 0:01:56.2]}
25... Bb4 {[%clk 0:01:43.3]} 26. Rd1 {[%clk 0:01:34.8]} 26... c5 {[%clk
0:01:23.5]} 27. Nb5 {[%clk 0:01:33]} 27... Rxe3 {[%clk 0:01:22.5]} 28. g4 {[%clk
0:01:24.2]} 28... f5 {[%clk 0:01:16]} 29. Nd6 {[%clk 0:01:18.8]} 29... Rc6
{[%clk 0:01:14.8]} 30. Nxf5+ {[%clk 0:01:04.4]} 30... Bxf5 {[%clk 0:01:14.7]}
31. gxf5 {[%clk 0:01:05.3]} 31... Kf6 {[%clk 0:01:12.1]} 32. Kf2 {[%clk
0:01:03.6]} 32... Re8 {[%clk 0:01:03.3]} 33. Bg2 {[%clk 0:01:01.9]} 33... Rd6
{[%clk 0:00:58.4]} 34. d4 {[%clk 0:00:54]} 34... cxd4 {[%clk 0:00:40.6]} 35. Rb5
{[%clk 0:00:53.3]} 35... Rc8 {[%clk 0:00:34.6]} 36. Bxd5 {[%clk 0:00:45.9]}
36... Bc5 {[%clk 0:00:23.4]} 37. Be4 {[%clk 0:00:31.3]} 37... d3+ {[%clk
0:00:23.4]} 38. Kf3 {[%clk 0:00:31.3]} 38... d2 {[%clk 0:00:23.3]} 39. Rxa5
{[%clk 0:00:24.6]} 39... Bb4 {[%clk 0:00:21.2]} 40. Rd5 {[%clk 0:00:24]} 40...
Rc3+ {[%clk 0:00:18.9]} 41. Ke2 {[%clk 0:00:20.4]} 41... Rxd5 {[%clk 0:00:19.5]}
42. Bxd5 {[%clk 0:00:20.5]} 42... Rxh3 {[%clk 0:00:20.4]} 43. Bf3 {[%clk
0:00:18.1]} 43... Rh2+ {[%clk 0:00:17.8]} 44. Ke3 {[%clk 0:00:17.3]} 44... Kxf5
{[%clk 0:00:15.9]} 45. Be4+ {[%clk 0:00:15.8]} 45... Kf6 {[%clk 0:00:15.9]} 46.
Rb1 {[%clk 0:00:15.8]} 46... Rh3+ {[%clk 0:00:12.6]} 47. Kd4 {[%clk 0:00:15.1]}
47... Bc3+ {[%clk 0:00:12]} 48. Kd5 {[%clk 0:00:13.6]} 48... Re3 {[%clk
0:00:12.2]} 49. Bc2 {[%clk 0:00:13.2]} 49... Re1 {[%clk 0:00:11.5]} 50. Bd1
{[%clk 0:00:11.4]} 50... h5 {[%clk 0:00:10.7]} 51. Rb6+ {[%clk 0:00:09.4]} 51...
Kg7 {[%clk 0:00:11.2]} 52. Bxh5 {[%clk 0:00:08.7]} 52... d1=Q+ {[%clk
0:00:11.2]} 53. Bxd1 {[%clk 0:00:09.3]} 53... Rxd1+ {[%clk 0:00:12.1]} 54. Kc4
{[%clk 0:00:09.8]} 54... Bf6 {[%clk 0:00:12.6]} 55. Rb5 {[%clk 0:00:09.5]} 55...
Rd4+ {[%clk 0:00:11.3]} 56. Kb3 {[%clk 0:00:09.5]} 56... Rxf4 {[%clk 0:00:10.3]}
57. a5 {[%clk 0:00:10.4]} 57... Rf1 {[%clk 0:00:10]} 58. Rb4 {[%clk 0:00:09.3]}
58... Ra1 {[%clk 0:00:10.9]} 59. Ra4 {[%clk 0:00:09.5]} 59... Rxa4 {[%clk
0:00:11.3]} 60. Kxa4 {[%clk 0:00:10.4]} 60... Bd4 {[%clk 0:00:11.6]} 61. Kb5
{[%clk 0:00:11.3]} 61... f5 {[%clk 0:00:12.1]} 62. Kc4 {[%clk 0:00:12.2]} 62...
Bg1 {[%clk 0:00:12.1]} 63. a6 {[%clk 0:00:11.8]} 63... f4 {[%clk 0:00:12.7]} 64.
Kd3 {[%clk 0:00:11.5]} 64... Kf6 {[%clk 0:00:12.3]} 65. Ke4 {[%clk 0:00:12.2]}
65... Kg5 {[%clk 0:00:12.4]} 66. Kf3 {[%clk 0:00:12.8]} 66... Ba7 {[%clk
0:00:13.1]} 67. Ke2 {[%clk 0:00:13.3]} 67... Kg4 {[%clk 0:00:14]} 68. Kf1 {[%clk
0:00:14]} 68... f3 {[%clk 0:00:14.9]} 69. Ke1 {[%clk 0:00:14.8]} 69... Kg3
{[%clk 0:00:15.4]} 70. Kf1 {[%clk 0:00:15.7]} 70... Kh2 {[%clk 0:00:15.3]} 71.
Ke1 {[%clk 0:00:16.6]} 71... Kg2 {[%clk 0:00:15.6]} 0-1

[Event "Early-Titled-Tuesday-Blitz-May-14-2024"]
[Site "Chess.com"]
[Date "2024.05.14"]
[Round "5"]
[White "GambitGiesbergen"]
[Black "DvaHrasta"]
[Result "1-0"]
[WhiteElo "2334"]
[BlackElo "2526"]
[TimeControl "180+1"]
[EndTime "8:59:08 PDT"]
[Termination "GambitGiesbergen won on time"]

1. Nf3 {[%clk 0:03:00.9]} 1... Nf6 {[%clk 0:02:59.4]} 2. c4 {[%clk 0:03:00.7]}
2... e6 {[%clk 0:02:58.5]} 3. Nc3 {[%clk 0:03:00.8]} 3... c5 {[%clk 0:02:56]} 4.
d4 {[%clk 0:02:59.8]} 4... cxd4 {[%clk 0:02:50.9]} 5. Nxd4 {[%clk 0:03:00.7]}
5... Nc6 {[%clk 0:02:49.2]} 6. e4 {[%clk 0:02:55.3]} 6... d5 {[%clk 0:02:42.9]}
7. cxd5 {[%clk 0:02:46.4]} 7... exd5 {[%clk 0:02:42.5]} 8. exd5 {[%clk
0:02:45.7]} 8... Nxd5 {[%clk 0:02:37]} 9. Bb5 {[%clk 0:02:33.1]} 9... Nxc3
{[%clk 0:02:35.7]} 10. bxc3 {[%clk 0:02:31.4]} 10... Bd7 {[%clk 0:02:35.3]} 11.
O-O {[%clk 0:02:16.3]} 11... Nxd4 {[%clk 0:02:34.1]} 12. Bxd7+ {[%clk
0:02:16.2]} 12... Qxd7 {[%clk 0:02:33.8]} 13. cxd4 {[%clk 0:02:17.1]} 13... Be7
{[%clk 0:02:30]} 14. Bb2 {[%clk 0:02:03.8]} 14... O-O {[%clk 0:02:28.8]} 15. Qf3
{[%clk 0:01:55.4]} 15... Bf6 {[%clk 0:02:23.6]} 16. Rfd1 {[%clk 0:01:52.4]}
16... Rac8 {[%clk 0:02:22.4]} 17. Rd2 {[%clk 0:01:44.3]} 17... Rfd8 {[%clk
0:02:11]} 18. Rad1 {[%clk 0:01:42.7]} 18... Qd5 {[%clk 0:02:08.9]} 19. Qa3
{[%clk 0:01:33]} 19... a6 {[%clk 0:02:02.7]} 20. g3 {[%clk 0:01:24.9]} 20... h5
{[%clk 0:02:00]} 21. h4 {[%clk 0:01:24.4]} 21... Rc4 {[%clk 0:01:54.5]} 22. Qb3
{[%clk 0:01:23.1]} 22... b5 {[%clk 0:01:51.3]} 23. Qe3 {[%clk 0:01:12.2]} 23...
Rdc8 {[%clk 0:01:39.6]} 24. Qa3 {[%clk 0:01:11]} 24... Ra4 {[%clk 0:01:32.8]}
25. Qb3 {[%clk 0:01:09.3]} 25... Rac4 {[%clk 0:01:29]} 26. Qa3 {[%clk
0:01:08.9]} 26... R8c6 {[%clk 0:01:24.9]} 27. Qe3 {[%clk 0:01:00.3]} 27... g6
{[%clk 0:01:20.8]} 28. Qe2 {[%clk 0:00:56.9]} 28... Kg7 {[%clk 0:01:17.7]} 29.
Kh2 {[%clk 0:00:56.1]} 29... b4 {[%clk 0:01:15.8]} 30. Ba1 {[%clk 0:00:50.2]}
30... a5 {[%clk 0:01:14.9]} 31. Qd3 {[%clk 0:00:41.4]} 31... a4 {[%clk
0:01:12.6]} 32. Kg1 {[%clk 0:00:35.5]} 32... Rc1 {[%clk 0:01:11.7]} 33. Bb2
{[%clk 0:00:33.6]} 33... Rxd1+ {[%clk 0:01:08.3]} 34. Rxd1 {[%clk 0:00:34.5]}
34... Rd6 {[%clk 0:00:58.4]} 35. Qb1 {[%clk 0:00:28.3]} 35... Qf3 {[%clk
0:00:54.6]} 36. d5 {[%clk 0:00:20.9]} 36... Bc3 {[%clk 0:00:42.3]} 37. Rd3
{[%clk 0:00:18.2]} 37... Qe4 {[%clk 0:00:38.4]} 38. Qc2 {[%clk 0:00:12.5]} 38...
Bxb2 {[%clk 0:00:32.2]} 39. Qxb2+ {[%clk 0:00:11.8]} 39... Kh7 {[%clk
0:00:31.9]} 40. Rd4 {[%clk 0:00:08.7]} 40... Qe1+ {[%clk 0:00:31.7]} 41. Kg2
{[%clk 0:00:09.3]} 41... b3 {[%clk 0:00:09.3]} 42. axb3 {[%clk 0:00:08.5]} 42...
Rb6 {[%clk 0:00:06.5]} 43. Rf4 {[%clk 0:00:06.1]} 43... Qe7 {[%clk 0:00:04.2]}
44. Rxa4 {[%clk 0:00:05.8]} 44... Qb7 {[%clk 0:00:03.3]} 45. Rf4 {[%clk
0:00:04.9]} 45... Qxd5+ {[%clk 0:00:02.7]} 46. Kh2 {[%clk 0:00:03.8]} 46... Rxb3
{[%clk 0:00:03]} 47. Qf6 {[%clk 0:00:03]} 47... Rb7 {[%clk 0:00:02.1]} 48. g4
{[%clk 0:00:02.3]} 48... Rd7 {[%clk 0:00:01.7]} 49. gxh5 {[%clk 0:00:02.3]}
49... Qxh5 {[%clk 0:00:02.3]} 50. Qg5 {[%clk 0:00:02.8]} 50... Qxg5 {[%clk
0:00:02.4]} 51. hxg5 {[%clk 0:00:03.7]} 51... Kg7 {[%clk 0:00:03]} 52. Rg4
{[%clk 0:00:04]} 52... Rd5 {[%clk 0:00:03.4]} 53. Kg3 {[%clk 0:00:04.6]} 53...
Rf5 {[%clk 0:00:03.9]} 54. f4 {[%clk 0:00:05.1]} 54... Ra5 {[%clk 0:00:04.5]}
55. Kh4 {[%clk 0:00:05.1]} 55... Ra3 {[%clk 0:00:05.4]} 56. Rg3 {[%clk
0:00:05.5]} 56... Ra4 {[%clk 0:00:06]} 57. Rf3 {[%clk 0:00:05.5]} 57... f6
{[%clk 0:00:05.9]} 58. gxf6+ {[%clk 0:00:03.7]} 58... Kxf6 {[%clk 0:00:06.8]}
59. Kg4 {[%clk 0:00:04.4]} 59... Rb4 {[%clk 0:00:07]} 60. Kg3 {[%clk 0:00:04.8]}
60... Kf5 {[%clk 0:00:07.2]} 61. Ra3 {[%clk 0:00:03.5]} 61... g5 {[%clk
0:00:06.1]} 62. Ra5+ {[%clk 0:00:03.9]} 62... Ke4 {[%clk 0:00:06.2]} 63. fxg5
{[%clk 0:00:02.5]} 63... Rb1 {[%clk 0:00:06.5]} 64. Kg4 {[%clk 0:00:03.1]} 64...
Rg1+ {[%clk 0:00:06.8]} 65. Kh5 {[%clk 0:00:03.8]} 65... Rh1+ {[%clk 0:00:07.3]}
66. Kg6 {[%clk 0:00:04.5]} 66... Rb1 {[%clk 0:00:06.8]} 67. Kh6 {[%clk 0:00:04]}
67... Rh1+ {[%clk 0:00:06.6]} 68. Kg7 {[%clk 0:00:04.3]} 68... Ra1 {[%clk
0:00:06.4]} 69. Rxa1 {[%clk 0:00:03.4]} 1-0

[Event "Early-Titled-Tuesday-Blitz-May-14-2024"]
[Site "Chess.com"]
[Date "2024.05.14"]
[Round "5"]
[White "AlmasRakhmatullaev"]
[Black "Dolphin_2010"]
[Result "1-0"]
[WhiteElo "2878"]
[BlackElo "2623"]
[TimeControl "180+1"]
[EndTime "8:59:11 PDT"]
[Termination "AlmasRakhmatullaev won on time"]

1. e4 {[%clk 0:02:55.8]} 1... c6 {[%clk 0:02:58.7]} 2. d4 {[%clk 0:02:50.6]}
2... d5 {[%clk 0:02:59.6]} 3. exd5 {[%clk 0:02:50.3]} 3... cxd5 {[%clk
0:03:00.5]} 4. c4 {[%clk 0:02:46.7]} 4... Nf6 {[%clk 0:03:00.3]} 5. Nc3 {[%clk
0:02:43.1]} 5... g6 {[%clk 0:03:00]} 6. Qb3 {[%clk 0:02:41.8]} 6... Bg7 {[%clk
0:03:00.1]} 7. cxd5 {[%clk 0:02:41.9]} 7... O-O {[%clk 0:03:00.2]} 8. Be2 {[%clk
0:02:41.9]} 8... Nbd7 {[%clk 0:02:59.6]} 9. Bf3 {[%clk 0:02:41.2]} 9... Nb6
{[%clk 0:03:00.2]} 10. Nge2 {[%clk 0:02:41.8]} 10... Bg4 {[%clk 0:03:00.6]} 11.
Bxg4 {[%clk 0:02:42.4]} 11... Nxg4 {[%clk 0:03:01.5]} 12. a4 {[%clk 0:02:43.1]}
12... Nf6 {[%clk 0:03:01.3]} 13. Nf4 {[%clk 0:02:43.3]} 13... Qd7 {[%clk
0:03:01.8]} 14. a5 {[%clk 0:02:40.1]} 14... Nc8 {[%clk 0:03:02.1]} 15. Be3
{[%clk 0:02:36.9]} 15... Nd6 {[%clk 0:02:58.2]} 16. O-O {[%clk 0:02:34.6]} 16...
Qf5 {[%clk 0:02:55.1]} 17. h3 {[%clk 0:02:21.1]} 17... Rfc8 {[%clk 0:02:30.5]}
18. Rac1 {[%clk 0:02:13.6]} 18... b6 {[%clk 0:02:21.8]} 19. a6 {[%clk
0:02:10.2]} 19... Rc4 {[%clk 0:02:04.2]} 20. Rfe1 {[%clk 0:02:06.2]} 20... Qc8
{[%clk 0:02:01.9]} 21. Nd3 {[%clk 0:01:42]} 21... Qxa6 {[%clk 0:01:55.6]} 22.
Ne5 {[%clk 0:01:42.3]} 22... Rcc8 {[%clk 0:01:38.4]} 23. Nc6 {[%clk 0:01:38.7]}
23... Qb7 {[%clk 0:01:23.1]} 24. Bf4 {[%clk 0:01:37]} 24... Bf8 {[%clk
0:01:20.7]} 25. Be5 {[%clk 0:01:32.2]} 25... Nxd5 {[%clk 0:00:58.7]} 26. Nxd5
{[%clk 0:01:18.5]} 26... Rxc6 {[%clk 0:00:56.1]} 27. Qf3 {[%clk 0:01:18.4]}
27... Rxc1 {[%clk 0:00:24.3]} 28. Rxc1 {[%clk 0:01:18.3]} 28... Rc8 {[%clk
0:00:24.2]} 29. Re1 {[%clk 0:01:18.5]} 29... Qc6 {[%clk 0:00:09]} 30. Nf6+
{[%clk 0:01:12.6]} 30... Kh8 {[%clk 0:00:08.6]} 31. d5 {[%clk 0:01:01.5]} 31...
Qc2 {[%clk 0:00:08.7]} 32. Ne8+ {[%clk 0:00:30.5]} 32... Kg8 {[%clk 0:00:04.3]}
33. Nf6+ {[%clk 0:00:18.5]} 33... Kh8 {[%clk 0:00:03.6]} 34. Ng4+ {[%clk
0:00:17.7]} 34... Kg8 {[%clk 0:00:03.7]} 35. Qf4 {[%clk 0:00:13.8]} 35... h5
{[%clk 0:00:02.5]} 36. Nh6+ {[%clk 0:00:12.4]} 36... Bxh6 {[%clk 0:00:02.9]} 37.
Qxh6 {[%clk 0:00:13]} 37... f6 {[%clk 0:00:03.5]} 38. Bxd6 {[%clk 0:00:13.3]}
38... exd6 {[%clk 0:00:04.2]} 39. Qf4 {[%clk 0:00:11.4]} 39... Qf5 {[%clk
0:00:02.1]} 40. Qxd6 {[%clk 0:00:11.7]} 40... Kh7 {[%clk 0:00:01.4]} 41. Qe7+
{[%clk 0:00:10.3]} 41... Kh6 {[%clk 0:00:01.7]} 42. d6 {[%clk 0:00:11.2]} 42...
Rc2 {[%clk 0:00:00.9]} 43. Rf1 {[%clk 0:00:08.5]} 43... Rd2 {[%clk 0:00:00.2]}
44. h4 {[%clk 0:00:06.1]} 44... Qf4 {[%clk 0:00:00.5]} 45. Qf8+ {[%clk
0:00:04.2]} 45... Kh7 {[%clk 0:00:01.1]} 46. Qf7+ {[%clk 0:00:03.7]} 46... Kh6
{[%clk 0:00:01.2]} 47. d7 {[%clk 0:00:04.6]} 47... Qd6 {[%clk 0:00:01.4]} 48.
Re1 {[%clk 0:00:04.6]} 48... Qxd7 {[%clk 0:00:01.8]} 49. Re7 {[%clk 0:00:05.3]}
49... Rd1+ {[%clk 0:00:01.6]} 50. Kh2 {[%clk 0:00:06]} 50... Qd6+ {[%clk
0:00:02.3]} 51. g3 {[%clk 0:00:06.6]} 51... Qxe7 {[%clk 0:00:01.6]} 52. Qxe7
{[%clk 0:00:07.5]} 52... f5 {[%clk 0:00:01.1]} 53. Qf8+ {[%clk 0:00:07.6]} 53...
Kh7 {[%clk 0:00:01.2]} 54. Qf7+ {[%clk 0:00:08.2]} 54... Kh6 {[%clk 0:00:02.1]}
55. Qxa7 {[%clk 0:00:08.9]} 55... Rd6 {[%clk 0:00:02.3]} 56. Qb8 {[%clk
0:00:09]} 56... Rd7 {[%clk 0:00:01.4]} 57. Qh8+ {[%clk 0:00:09]} 57... Rh7
{[%clk 0:00:01.1]} 58. Qf8+ {[%clk 0:00:09.9]} 58... Rg7 {[%clk 0:00:02]} 59.
Qd6 {[%clk 0:00:10.2]} 59... b5 {[%clk 0:00:01.7]} 60. Qe5 {[%clk 0:00:10.7]}
60... g5 {[%clk 0:00:01.4]} 61. Qxf5 {[%clk 0:00:10.3]} 61... gxh4 {[%clk
0:00:02.3]} 62. gxh4 {[%clk 0:00:09.1]} 62... Rg4 {[%clk 0:00:03.2]} 63. Qxb5
{[%clk 0:00:07.9]} 63... Rxh4+ {[%clk 0:00:03.1]} 64. Kg2 {[%clk 0:00:08.6]}
64... Rg4+ {[%clk 0:00:04]} 65. Kf1 {[%clk 0:00:09.2]} 65... h4 {[%clk
0:00:03.6]} 66. Qc5 {[%clk 0:00:09.8]} 66... Rg5 {[%clk 0:00:02.7]} 67. Qd6+
{[%clk 0:00:09.9]} 67... Kh5 {[%clk 0:00:02.9]} 68. Qf4 {[%clk 0:00:10.6]} 68...
Rg4 {[%clk 0:00:02.5]} 69. Qf7+ {[%clk 0:00:11.1]} 69... Kh6 {[%clk 0:00:02.5]}
70. b4 {[%clk 0:00:10]} 70... Rxb4 {[%clk 0:00:01.6]} 71. Qf8+ {[%clk
0:00:10.5]} 1-0

[Event "Early-Titled-Tuesday-Blitz-May-14-2024"]
[Site "Chess.com"]
[Date "2024.05.14"]
[Round "5"]
[White "GrotBchess"]
[Black "Matibar"]
[Result "0-1"]
[WhiteElo "2529"]
[BlackElo "2782"]
[TimeControl "180+1"]
[EndTime "8:59:11 PDT"]
[Termination "Matibar won by resignation"]

1. e4 {[%clk 0:03:00.9]} 1... c6 {[%clk 0:02:59]} 2. d4 {[%clk 0:02:59.7]} 2...
d5 {[%clk 0:02:59.9]} 3. Nd2 {[%clk 0:02:57.4]} 3... g6 {[%clk 0:02:56.6]} 4.
Ngf3 {[%clk 0:02:56.1]} 4... Bg7 {[%clk 0:02:56.3]} 5. c3 {[%clk 0:02:53.6]}
5... Nh6 {[%clk 0:02:33.4]} 6. Bd3 {[%clk 0:02:51.6]} 6... f6 {[%clk 0:02:31.7]}
7. Qe2 {[%clk 0:02:48]} 7... O-O {[%clk 0:02:30.9]} 8. h3 {[%clk 0:02:47.6]}
8... Nf7 {[%clk 0:02:29.7]} 9. O-O {[%clk 0:02:47.1]} 9... e5 {[%clk 0:02:25.9]}
10. dxe5 {[%clk 0:02:46.9]} 10... fxe5 {[%clk 0:02:25.8]} 11. Rd1 {[%clk
0:02:37.5]} 11... Be6 {[%clk 0:02:17]} 12. Nf1 {[%clk 0:02:36.7]} 12... Nd7
{[%clk 0:02:16.2]} 13. b4 {[%clk 0:02:27.9]} 13... Kh8 {[%clk 0:01:58.6]} 14.
Ng3 {[%clk 0:02:24.8]} 14... Nd6 {[%clk 0:01:57.1]} 15. Bg5 {[%clk 0:02:16]}
15... Qe8 {[%clk 0:01:56.8]} 16. Nh2 {[%clk 0:01:51.8]} 16... h6 {[%clk
0:01:30.6]} 17. Be3 {[%clk 0:01:44.2]} 17... b6 {[%clk 0:01:17.8]} 18. Ng4
{[%clk 0:01:41.4]} 18... h5 {[%clk 0:01:16.4]} 19. Nh2 {[%clk 0:01:30.4]} 19...
d4 {[%clk 0:01:15]} 20. cxd4 {[%clk 0:01:21.9]} 20... exd4 {[%clk 0:01:15.9]}
21. Bg5 {[%clk 0:01:20.6]} 21... c5 {[%clk 0:01:15.4]} 22. bxc5 {[%clk
0:01:03.2]} 22... bxc5 {[%clk 0:01:16.3]} 23. Rac1 {[%clk 0:01:03.1]} 23... c4
{[%clk 0:01:13.1]} 24. Bxc4 {[%clk 0:01:00.1]} 24... Nxc4 {[%clk 0:01:13.3]} 25.
Rxc4 {[%clk 0:01:00.2]} 25... Bxc4 {[%clk 0:01:13.4]} 26. Qxc4 {[%clk
0:01:00.7]} 26... Ne5 {[%clk 0:01:03.3]} 27. Qe2 {[%clk 0:01:00.1]} 27... d3
{[%clk 0:00:55.7]} 28. Qe3 {[%clk 0:00:59]} 28... Qa4 {[%clk 0:00:51.8]} 29. Rf1
{[%clk 0:00:34.5]} 29... Qc2 {[%clk 0:00:33.7]} 30. Bh6 {[%clk 0:00:29.1]} 30...
Nf7 {[%clk 0:00:23.5]} 31. Bxg7+ {[%clk 0:00:25.1]} 31... Kxg7 {[%clk
0:00:24.4]} 32. Nf3 {[%clk 0:00:20.6]} 32... Rad8 {[%clk 0:00:22.1]} 33. Nd2
{[%clk 0:00:17.2]} 33... Qxa2 {[%clk 0:00:21.9]} 34. e5 {[%clk 0:00:16.9]} 34...
Qe6 {[%clk 0:00:21.1]} 35. f4 {[%clk 0:00:16.7]} 35... Qb6 {[%clk 0:00:20.9]}
36. Qxb6 {[%clk 0:00:15.5]} 36... axb6 {[%clk 0:00:21.8]} 37. Nge4 {[%clk
0:00:15.2]} 37... Rd4 {[%clk 0:00:21]} 38. Kf2 {[%clk 0:00:12.8]} 38... Nxe5
{[%clk 0:00:18.6]} 39. Ke3 {[%clk 0:00:12.9]} 39... Rd5 {[%clk 0:00:11.7]} 40.
fxe5 {[%clk 0:00:08.8]} 40... Rxf1 {[%clk 0:00:12.6]} 41. Nxf1 {[%clk
0:00:09.1]} 41... Rxe5 {[%clk 0:00:11.4]} 42. Kxd3 {[%clk 0:00:09]} 42... Ra5
{[%clk 0:00:11.1]} 43. Nfd2 {[%clk 0:00:08.6]} 43... Ra3+ {[%clk 0:00:11.1]} 44.
Kc2 {[%clk 0:00:06.6]} 44... b5 {[%clk 0:00:10.5]} 45. Kb2 {[%clk 0:00:06.5]}
45... Re3 {[%clk 0:00:10.1]} 46. Kc2 {[%clk 0:00:06.8]} 46... h4 {[%clk
0:00:08.9]} 47. Kd1 {[%clk 0:00:06.3]} 47... Kh6 {[%clk 0:00:07.9]} 48. Nc5
{[%clk 0:00:06]} 48... Rg3 {[%clk 0:00:06.9]} 49. Nce4 {[%clk 0:00:03.8]} 49...
Rxg2 {[%clk 0:00:07.2]} 50. Ke1 {[%clk 0:00:04.4]} 50... Rh2 {[%clk 0:00:06.5]}
51. Nf2 {[%clk 0:00:04.7]} 51... Rg2 {[%clk 0:00:06]} 52. Kf1 {[%clk 0:00:04.9]}
52... Rg3 {[%clk 0:00:06.3]} 53. Ke2 {[%clk 0:00:04.7]} 53... Ra3 {[%clk
0:00:06]} 54. Nde4 {[%clk 0:00:05.1]} 54... Ra2+ {[%clk 0:00:05.5]} 55. Kd3
{[%clk 0:00:05.2]} 55... b4 {[%clk 0:00:05.6]} 56. Kc4 {[%clk 0:00:04.8]} 56...
Rb2 {[%clk 0:00:05.4]} 57. Ng4+ {[%clk 0:00:04.9]} 57... Kg7 {[%clk 0:00:04.9]}
58. Nef2 {[%clk 0:00:04.5]} 58... Kf7 {[%clk 0:00:04.4]} 59. Nd3 {[%clk
0:00:04.6]} 59... Rg2 {[%clk 0:00:03.7]} 60. Nxb4 {[%clk 0:00:04.3]} 60... Rg3
{[%clk 0:00:03.3]} 61. Nf2 {[%clk 0:00:04.6]} 61... Rf3 {[%clk 0:00:03.1]} 62.
Nbd3 {[%clk 0:00:04.8]} 62... Ke6 {[%clk 0:00:03.1]} 63. Kd4 {[%clk 0:00:04.9]}
63... Kf5 {[%clk 0:00:03.5]} 64. Ne4 {[%clk 0:00:03.5]} 64... Rxh3 {[%clk
0:00:03.3]} 65. Nef2 {[%clk 0:00:03.7]} 65... Rf3 {[%clk 0:00:02.8]} 66. Kc3
{[%clk 0:00:03.8]} 66... g5 {[%clk 0:00:02.9]} 67. Kd2 {[%clk 0:00:04.3]} 67...
g4 {[%clk 0:00:03.7]} 68. Ke2 {[%clk 0:00:04.9]} 68... Rg3 {[%clk 0:00:03.9]}
69. Ne1 {[%clk 0:00:04.6]} 69... h3 {[%clk 0:00:03.5]} 70. Nh1 {[%clk
0:00:03.9]} 70... Rg1 {[%clk 0:00:03.6]} 71. Nf2 {[%clk 0:00:03.1]} 71... h2
{[%clk 0:00:04.2]} 72. Ned3 {[%clk 0:00:03]} 72... h1=Q {[%clk 0:00:05.1]} 0-1